Cogmind - Beta 15 @@@ ROGUE MODE // 2025.07.12 @ 02:18:41 Player: Inverisimilidude Result: Destroyed by RD-U72(R) with Subdweller Laser Performance ------------- Evolutions (0) 0 Regions Visited (3) 600 Robots Destroyed (24) 120 Value Destroyed (588) 588 Prototype IDs (0) 0 Alien Tech Used (0) 0 Bonus (0) 0 TOTAL SCORE: 1308 Bonus ------- None Cogmind --------- Core Integrity 0/250 Matter 300/300 Energy 121/125 System Corruption 0% Temperature Cool (8) Movement Walking (120) Location -10/Subcaves Parts ------- > --- POWER (1) -------- Light Ion Engine > --- PROPULSION (2) --- Aluminum Leg Aluminum Leg > --- UTILITY (2) ------ Small Storage Unit Sensor Array > --- WEAPON (2) ------- Medium Laser Subdweller Laser > --- INVENTORY (8) ---- Aluminum Leg Aluminum Leg Aluminum Leg Compact Wheel Subdweller Laser Light Assault Rifle Peak State ------------ > --- POWER ------------ Light Ion Engine > --- PROPULSION ------- Aluminum Leg Aluminum Leg > --- UTILITY ---------- Small Storage Unit Sensor Array > --- WEAPON ----------- Medium Laser Particle Gun > --- INVENTORY -------- Aluminum Leg Aluminum Leg Aluminum Leg Aluminum Leg Compact Wheel Compact Wheel Weapon Shielding Grenade Launcher [Rating: 8] Favorites ----------- Power Light Ion Engine Engine Light Ion Engine Propulsion Aluminum Leg Leg Aluminum Leg Utility Small Storage Unit Device Sensor Array Storage Small Storage Unit Weapon Medium Laser Energy Gun Medium Laser Launcher Grenade Launcher Build | -11 -10 -10 -10 ------- Run | Yrd Mat Min Sub Slots Evolved . | . . . . Power . | . . . . Propulsion . | . . . . Utility . | . . . . Weapon . | . . . . Parts Attached 15 | 6 4 2 3 Power 2 | 1 . 1 . Engine 2 | 1 . 1 . Core . | . . . . Reactor . | . . . . Propulsion 4 | 2 1 . 1 Treads . | . . . . Leg 4 | 2 1 . 1 Wheel . | . . . . Hover . | . . . . Flight . | . . . . Utility 2 | 1 1 . . Device 1 | . 1 . . Storage 1 | 1 . . . Processor . | . . . . Hackware . | . . . . Protection . | . . . . Artifact . | . . . . Weapon 7 | 2 2 1 2 Energy Gun 5 | 2 1 1 1 Energy Cannon . | . . . . Ballistic Gun . | . . . . Ballistic Cannon . | . . . . Launcher 2 | . 1 . 1 Special Weapon . | . . . . Impact Weapon . | . . . . Slashing Weapon . | . . . . Piercing Weapon . | . . . . Special Melee Weapon . | . . . . Unidentified Prototypes . | . . . . Parts Lost 6 | . . 2 4 Power 1 | . . 1 . Propulsion 1 | . . . 1 Utility . | . . . . Weapon 4 | . . 1 3 Highest Loss Streak 3 | . . 1 3 To Critical Strikes . | . . . . Average Backups 6 | 2 6 7 7 Power . | . 1 . . Propulsion 4 | 1 3 5 4 Utility . | . . . . Weapon 2 | . 1 2 2 Tool/Special . | . . . . Unused Backups 9 | . 1 2 6 Power . | . . . . Propulsion 5 | . . 1 4 Utility 1 | . . 1 . Weapon 3 | . 1 . 2 Tool/Special . | . . . . Average Slot Usage (%) 97 | . 92 99 99 Engine 13 | . 14 13 14 Leg 28 | . 28 28 28 Device 12 | . 6 14 14 Storage 14 | . 14 14 14 Energy Gun 25 | . 23 27 26 Launcher 1 | . 4 . 1 Peak Build Rating 8 | 6 7 8 8 Average Rating 7 | 4 6 7 7 On Entrance 5 | . 6 7 8 Naked Turns . | . . . . Heaviest Build 16 | 12 14 15 16 Greatest Support 20 | 20 20 20 20 Greatest Overweight (x) . | . . . . Average Overweight (x) . | . . . . Largest Inventory Capacity 8 | 8 8 8 8 Average Capacity 7 | 7 8 8 8 Most Carried 8 | 4 8 8 8 Average Carried 7 | 2 6 7 7 Final Capacity 8 | 8 8 8 8 Final Carried 8 | 4 8 8 6 Class Distribution -------------------- 100% | Mutant Dominant Class ---------------- Mutant | -10/Materials Mutant | -10/Mines Mutant | -10/Subcaves Resources | -11 -10 -10 -10 ----------- Run | Yrd Mat Min Sub Matter Collected 605 | 251 102 99 153 Remotely . | . . . . Salvage Created 488 | . 193 112 183 Parts 46 | . 15 16 15 Haulers Intercepted . | . . . . Recyclers Shooed . | . . . . Parts Field Recycled . | . . . . Retrieved Matter . | . . . . Parts Self-Destructed 5 | . . . 5 Prevented . | . . . . Kills | -11 -10 -10 -10 ------- Run | Yrd Mat Min Sub Combat Hostiles Destroyed 20 | . 8 4 8 Guns 7 | . 3 2 2 AOE 13 | . 5 2 6 Classes Destroyed 6 | . 4 1 1 Worker 1 | . 1 . . Builder 2 | . 1 1 . Tunneler 1 | . . 1 . Swarmer 9 | . 4 2 3 Grunt 6 | . 4 2 . Subdweller 5 | . . . 5 Best Kill Streak 5 | . 5 4 3 Combat Bots Only 4 | . 4 2 3 Max Kills in Single Turn 3 | . 3 3 2 Gunslinging . | . . . . Exploded 2 | . 2 1 2 Melee . | . . . . Uniques/NPCs Destroyed . | . . . . Combat | -11 -10 -10 -10 -------- Run | Yrd Mat Min Sub Hostile Shots Fired 74 | . 40 10 24 Missed 22 | . 13 3 6 Hits 52 | . 27 7 18 Projectile 52 | . 27 7 18 Critical Strikes 1 | . 1 . . Damage Taken 882 | . 399 103 380 Core 257 | . 127 6 124 Absorbed by Shields . | . . . . Core Remaining (%) 100 | 100 . . . Volleys Fired 44 | . 29 5 10 Largest 2 | . 2 2 2 Hottest 115 | . 100 115 115 Shots Fired 83 | . 56 9 18 Gun 66 | . 49 7 10 Cannon . | . . . . Launcher 17 | . 7 2 8 Special . | . . . . Kinetic . | . . . . Thermal 66 | . 49 7 10 Explosive 17 | . 7 2 8 Electromagnetic . | . . . . Robot Hit Streak 11 | . 6 3 11 Robot Miss Streak 6 | . 6 2 1 Penetration Max . | . . . . Secondary Targets . | . . . . Shots Hit Robots 39 | . 24 4 11 Core Hits 35 | . 15 7 13 Critical Kills . | . . . . Critical Parts Destroyed . | . . . . Critical Strikes 3 | . 1 1 1 Burn 3 | . 1 1 1 Melee Attacks . | . . . . Impact . | . . . . Slashing . | . . . . Piercing . | . . . . Sneak Attacks . | . . . . Combat Hostiles . | . . . . Follow-up Attacks . | . . . . Damage Inflicted 1400 | . 627 245 528 Guns 420 | . 266 54 100 Cannons . | . . . . Explosions 980 | . 361 191 428 Melee . | . . . . Ramming . | . . . . Kinetic . | . . . . Thermal 420 | . 266 54 100 Explosive 980 | . 361 191 428 Electromagnetic . | . . . . Impact . | . . . . Slashing . | . . . . Piercing . | . . . . Highest Corruption . | . . . . Average Corruption . | . . . . Corruption Purged . | . . . . Corruption Blocked . | . . . . Overload Shots . | . . . . Overflow Damage 15 | . 8 7 . Projectiles . | . . . . Explosions 15 | . 8 7 . Melee . | . . . . Knockbacks . | . . . . Impact . | . . . . Kinetic . | . . . . Secondary . | . . . . Self-Inflicted Damage 181 | . 78 32 71 Shots 8 | . 4 1 3 Rammed . | . . . . Targets Rammed . | . . . . Kicked . | . . . . Crushed . | . . . . Highest Temperature 306 | . 306 108 12 Average Temperature 100 | . 110 40 10 Received Heat Transfer 252 | . 168 18 66 Siege Activations . | . . . . Martial Activations . | . . . . Shielding Activations . | . . . . Robots Disrupted . | . . . . Combat Hostiles . | . . . . Robots Corrupted . | . . . . Combat Hostiles . | . . . . Parts Fried . | . . . . Impact Corruptions . | . . . . Robots Melted . | . . . . Combat Hostiles . | . . . . Parts Melted 1 | . . . 1 Heat Transferred 1345 | . 851 222 272 Parts Sabotaged . | . . . . Parts Stolen . | . . . . Parts Stripped . | . . . . Power Chain Reactions . | . . . . Alert | -11 -10 -10 -10 ------- Run | Yrd Mat Min Sub Maximum Alert Level 1 | . 1 . . Low Security (%) 95 | 100 88 100 . Level 1 4 | . 11 . . Level 2 . | . . . . Level 3 . | . . . . Level 4 . | . . . . Level 5 . | . . . . High Security . | . . . . Max Security . | . . . . Peak Influence 225 | . 225 122 . Initial 67 | . . 67 . Average 66 | . 92 56 . Influence Increases 535 | . 325 140 70 Destroy 0b10 Robot/C 300 | . 160 80 60 Destroy 0b10 Robot/NC 20 | . 10 10 . Destroy Leader 60 | . 40 10 10 Disable Machine 75 | . 45 30 . Destroy Structure 65 | . 55 10 . Lose Combat Pursuer 15 | . 15 . . Influence Decreases 535 | . 150 315 70 Entered New Map 108 | . . 108 . Time Decay 407 | . 150 187 70 Lost Part 20 | . . 20 . Squads Dispatched 1 | . 1 . . Investigation . | . . . . Extermination . | . . . . Reinforcement 1 | . 1 . . Assault . | . . . . Garrison . | . . . . Intercept . | . . . . Searches Triggered . | . . . . Construction Impeded . | . . . . Haulers Reinforced . | . . . . Active Scanning Responses . | . . . . Cargo Convoy Interrupts . | . . . . Stealth | -11 -10 -10 -10 --------- Run | Yrd Mat Min Sub Distress Signals . | . . . . Communications Jammed . | . . . . Distress Signals . | . . . . Times Spotted 29 | . 15 4 10 Peak Tracking Total 5 | . 5 2 3 Tactical Retreats 1 | . 1 . . Traps | -11 -10 -10 -10 ------- Run | Yrd Mat Min Sub Traps Triggered . | . . . . Indirectly . | . . . . Trap Hack Attempts . | . . . . Triggered . | . . . . Disarmed . | . . . . Reprogrammed . | . . . . Reused . | . . . . Traps Extracted . | . . . . Installed . | . . . . Triggered . | . . . . Machines | -11 -10 -10 -10 ---------- Run | Yrd Mat Min Sub Machines Disabled 5 | . 3 2 . Max in Single Turn 1 | . 1 1 . Machines Repaired . | . . . . Machines Dismantled . | . . . . Machines Sabotaged . | . . . . Overloaded Fab Kills . | . . . . Hacking | -11 -10 -10 -10 --------- Run | Yrd Mat Min Sub Machines Accessed 1 | . . 1 . Terminals 1 | . . 1 . Fabricators . | . . . . Repair Stations . | . . . . Recycling Units . | . . . . Scanalyzers . | . . . . Garrison Access . | . . . . Total Hacks 1 | . . 1 . Successful 1 | . . 1 . Failed . | . . . . Catastrophic . | . . . . Database Lockouts . | . . . . Manual 1 | . . 1 . Terminals 1 | . . 1 . Fabricators . | . . . . Repair Stations . | . . . . Recycling Units . | . . . . Scanalyzers . | . . . . Garrison Access . | . . . . Terminal Hacks . | . . . . Fabricator Hacks . | . . . . Repair Station Hacks . | . . . . Recycling Unit Hacks . | . . . . Scanalyzer . | . . . . Garrison Access Hacks . | . . . . Unauthorized Hacks 1 | . . 1 . Terminals 1 | . . 1 . Botnet 1 | . . 1 . Fabricators . | . . . . Repair Stations . | . . . . Recycling Units . | . . . . Scanalyzers . | . . . . Garrison Access . | . . . . Data Cores Recovered . | . . . . Used . | . . . . Hacking Detections . | . . . . Full Trace Events . | . . . . Feedback Events . | . . . . Feedback Blocked . | . . . . Robot Schematics Acquired . | . . . . Robots Built . | . . . . Authchips . | . . . . Time . | . . . . Total Robot Build Rating . | . . . . Part Schematics Acquired . | . . . . Parts Built . | . . . . Authchips . | . . . . Time . | . . . . Total Part Build Rating . | . . . . Parts Repaired . | . . . . Time . | . . . . Parts Recycled . | . . . . Recycled Matter . | . . . . Retrieved Matter . | . . . . Retrieved Components . | . . . . Parts Scanalyzed . | . . . . Part Schematics Acquired . | . . . . Parts Damaged . | . . . . Bothacking | -11 -10 -10 -10 ------------ Run | Yrd Mat Min Sub Used RIF Installer . | . . . . Robots Hacked . | . . . . Non-combat . | . . . . Combat . | . . . . Robot Hacks Applied . | . . . . Relay Couplers Released . | . . . . Fabnet Peak Effective % . | . . . . Robots Rewired . | . . . . Allies Hacked . | . . . . Hacks Repelled . | . . . . Allies | -11 -10 -10 -10 -------- Run | Yrd Mat Min Sub Total Allies . | . . . . Largest Group . | . . . . Highest-Rated Group . | . . . . Highest-Rated Ally . | . . . . Total Orders . | . . . . Ally Attacks . | . . . . Total Damage . | . . . . Kills . | . . . . Allies Corrupted . | . . . . Allies Melted . | . . . . Intel | -11 -10 -10 -10 ------- Run | Yrd Mat Min Sub Active Infowar (turns) 1249 | . 194 450 605 Sensors 1249 | . 194 450 605 Robot Analysis Total . | . . . . Derelict Logs Recovered 2 | . . 2 . Drone Launches . | . . . . Drone Recoveries . | . . . . Exploration | -11 -10 -10 -10 ------------- Run | Yrd Mat Min Sub Turns Passed 1534 | 85 394 450 605 Spaces Moved 1021 | 62 239 259 461 Core 10 | 10 . . . Treads . | . . . . Legs 1011 | 52 239 259 461 Wheels . | . . . . Hover . | . . . . Flight . | . . . . Fastest Speed 50 | 50 120 120 120 Average Speed 119 | 108 120 120 120 Slowest Speed 120 | 120 120 120 120 Overloaded Moves . | . . . . Propulsion Burnouts . | . . . . Robots Hopped . | . . . . Potential Cave-ins . | . . . . Cave-ins Triggered . | . . . . Exploration Rate (%) 35 | 4 54 50 32 Regions Visited 3 Branch Regions 2 Pre-discovered Areas 2 | . . 1 1 Known Exits Taken . | . . . . Unknown Exits Taken 3 | 1 1 1 . Scrap Searched . | . . . . Spaces Dug . | . . . . Terrain Destroyed 136 | . 74 10 52 Melee . | . . . . Projectile . | . . . . AOE 136 | . 74 10 52 Terrain Rammed . | . . . . Walls Destroyed . | . . . . Machines Disabled . | . . . . Actions | -11 -10 -10 -10 --------- Run | Yrd Mat Min Sub Total 1248 | 77 287 391 493 Wait 138 | 5 6 114 13 Move 1018 | 61 238 258 461 Hop . | . . . . Pick Up 16 | 5 5 5 1 Fast Attach 7 | 5 1 . 1 Attach 6 | 1 . 2 3 Detach . | . . . . Swap 13 | . 6 3 4 Drop 6 | . 2 4 . Fire 44 | . 29 5 10 Melee . | . . . . Ram . | . . . . Kick . | . . . . Crush . | . . . . Escape Stasis . | . . . . Rewire . | . . . . Trap . | . . . . Miscellaneous . | . . . . Route ------- -11/Scrapyard -10/Materials (discovered 2 exits: [*Mat] / *Min) -10/Mines -10/Subcaves (discovered 2 exits: [*Mat x2]) History --------- Turn | Location | Event 4 | -11/Scrapyard | Discovered new exit (range 16) 86 | -11/Scrapyard | Entered Materials 254 | -10/Materials | Discovered new exit (range 8) 308 | -10/Materials | Build established: Mutant 380 | -10/Materials | Core integrity fell below 50% 387 | -10/Materials | Discovered new exit (range 13) 480 | -10/Materials | Entered Mines 695 | -10/Mines | Learned Materials terminal intel 708 | -10/Mines | Learned location of Mines (-9) 740 | -10/Mines | YI-UF0 nonchalantly dropped a Grenade Launcher on the ground 924 | -10/Mines | Discovered new exit (range 6) 930 | -10/Mines | Entered Subcaves 936 | -10/Subcaves | Learned location of Zion (-7) 936 | -10/Subcaves | Met a Zionite searching for "candidates" 1031 | -10/Subcaves | Discovered new exit (range 10) 1304 | -10/Subcaves | Ambushed by Subdwellers from Twisted Machinery 1340 | -10/Subcaves | Lost 3 parts (1n2w) 1399 | -10/Subcaves | Core integrity fell below 20% 1519 | -10/Subcaves | Discovered new exit (range 10) 1535 | -10/Subcaves | Destroyed by RD-U72(R) with Subdweller Laser Last Messages --------------- 01317_ Acquired 20 matter. 01318_ Acquired 10 matter. 01320_ Acquired Sub. Laser. 01326_ Subatomizers dissect the Sub. Power Source. 01326_ The unstable cave ceiling collapses. 01339_ Subatomizers dissect the Sub. Power Source. 01343_ Acquired 11 matter. 01387_ HG-YAY(u) tweaks Twisted Machinery. 01401_ C0-VFM(R) destroyed. 01407_ WD-NQT(R) destroyed. 01412_ Grenade Launcher destroyed. 01429_ Sub. Power Source melted. 01429_ 3E-OAF(R) destroyed. 01432_ Acquired 51 matter. 01434_ Acquired Sub. Laser. 01440_ Acquired 13 matter. 01470_ Subatomizers dissect the Sub. Optics. 01519_ EXIT=FOUND Map ----- +----------------------------------------------------+ | ??????????????#"" "### " #?# #?????### | | ??????????????#"""""" ###" ### #?? #?????# | | ??????????????##""# #?## ##?# ##?? #?????# | | ??????????????#"""# #?## ##???#??? #?????# | | ??????????????## ## "### #?????? #?????## | | ???????????????" ##""## ##??##? #?????## # | | ???????????????#" ""### #### ## #?????# ## | | ???????????????#"""? ?##### ## #?????# ## | | ????????????????"""? ??#### #?????# # | | ????????????????????"???# ## ####??# | | ????????????????????????# ## #??# | | ????????????????????????# #??#### | | ????????????????????????###### ##?????## | | ?????????????????????????????## ##??????# | | ??????????????????????????????# ##??????## | | ????????????????#?????????????# ##?????# | | ????????????????""????????????## ### ## | | ????????????????"" ????????????# ## | | ?????????????????" #????????#### ## | | ??????????????????" #???????# ? | | ??????????????????""R#??????# " ## ? | | ??????????????????""" #?##### " #####?#### ?? | | ???????????????????#"" ## # " #??????????????? | | ???????????????????# R """ ##??????????????? | | ???????????????????# "" " ##???????????????? | | ???????????????????## < @"##"" #????????????????? | | ????????????????????# #####"" #????????????????? | | ???????????????????# ?????# " #????????????????? | | ???????????????????## ??????#####????????????????? | | ????????????????????#????????????????????????????? | | ?????????????????????????????????????????????????? | | ?????????????????????????????????????????????????? | | ?????????????????????????????????????????????????? | | ?????????????????????????????????????????????????? | | ?????????????????????????????????????????????????? | | ?????????????????????????????????????????????????? | | ?????????????????????????????????????????????????? | | ?????????????????????????????????????????????????? | | ?????????????????????????????????????????????????? | | ?????????????????????????????????????????????????? | | ?????????????????????????????????????????????????? | | ?????????????????????????????????????????????????? | | ?????????????????????????????????????????????????? | | ?????????????????????????????????????????????????? | | | | | | | | | | | | | +----------------------------------------------------+ Best States ------------- Heat Dissipation 25 Energy Generation 10 Energy Capacity 125 Matter Stores 300 Matter Capacity 300 Sight Range 16 Robot Scan Range 14 Terrain Scan Density 10 Evasion (%) 55 Item Schematics ----------------- None Robot Schematics ------------------ None Fabricated ------------ Nothing Repaired ---------- Nothing Alien Tech Used ----------------- None Achievements -------------- None Challenges ------------ None Game ------ Seed GravmagSwarmRailgun Manual? 0 Play Time 00:11:43 Cumulative 42.5 hours Start 2025.07.12 @ 02:09:39 End 2025.07.12 @ 02:18:41 Sessions 1 Manual Loads 0 Difficulty Rogue Special Mode None Game No. 56 Rogue 56 Adventurer 0 Explorer 0 Win Type - Total 0 Types 0/0/0/0/0/0/0/0/0/0 Lore% 33 Gallery% 29 Achievement% 30 Wizard Run 0 Options --------- Layout 1 ASCII 0 Keyboard 0 Movement Arrows Keybinds 0 Fullscreen 1 Font 24/Smallcaps Map View 50x35 Zoom Use 0% Tactical HUD 1 Map Filters NONE Filters NONE Steam 1 RUN: 55ae30c3-0f4e-4892-b7d8-102d88b10944